[Event "Early-Titled-Tuesday-Blitz-May-14-2024"]
[Site "Chess.com"]
[Date "2024.05.14"]
[Round "6"]
[White "BardArtem"]
[Black "DonkyDonkyDonkey"]
[Result "0-1"]
[WhiteElo "2761"]
[BlackElo "2913"]
[TimeControl "180+1"]
[EndTime "9:08:54 PDT"]
[Termination "DonkyDonkyDonkey won by resignation"]

1. b3 {[%clk 0:03:00.9]} 1... e5 {[%clk 0:02:59.9]} 2. Bb2 {[%clk 0:02:59.6]}
2... Nc6 {[%clk 0:03:00.6]} 3. c4 {[%clk 0:02:59.3]} 3... Nf6 {[%clk 0:03:00.8]}
4. Nf3 {[%clk 0:02:59.1]} 4... e4 {[%clk 0:03:00.8]} 5. Nd4 {[%clk 0:02:59.1]}
5... Bc5 {[%clk 0:03:01]} 6. Nf5 {[%clk 0:02:58.9]} 6... O-O {[%clk 0:03:01.2]}
7. e3 {[%clk 0:02:58.8]} 7... d5 {[%clk 0:03:00.6]} 8. cxd5 {[%clk 0:02:58.5]}
8... Bxf5 {[%clk 0:02:59.4]} 9. dxc6 {[%clk 0:02:58.5]} 9... bxc6 {[%clk
0:03:00.3]} 10. Na3 {[%clk 0:02:59]} 10... Nd5 {[%clk 0:02:54.3]} 11. Nc4 {[%clk
0:02:55.8]} 11... Nb4 {[%clk 0:02:49.8]} 12. Be2 {[%clk 0:02:25]} 12... Nd3+
{[%clk 0:02:43.8]} 13. Bxd3 {[%clk 0:02:24.2]} 13... Qxd3 {[%clk 0:02:44.7]} 14.
Qe2 {[%clk 0:02:12.4]} 14... Qd5 {[%clk 0:02:41.6]} 15. O-O {[%clk 0:02:07.2]}
15... Rad8 {[%clk 0:02:38.2]} 16. Rac1 {[%clk 0:01:54.5]} 16... Bd6 {[%clk
0:02:36.2]} 17. Nxd6 {[%clk 0:01:50.7]} 17... Rxd6 {[%clk 0:02:37.1]} 18. Bd4
{[%clk 0:01:47.8]} 18... Rg6 {[%clk 0:02:34.3]} 19. Rc5 {[%clk 0:01:33.4]} 19...
Qd7 {[%clk 0:02:23.4]} 20. f4 {[%clk 0:01:31.2]} 20... exf3 {[%clk 0:02:08.8]}
21. Qxf3 {[%clk 0:01:17.1]} 21... Bg4 {[%clk 0:02:05.5]} 22. Qf4 {[%clk
0:01:11.5]} 22... h6 {[%clk 0:02:04.9]} 23. Kh1 {[%clk 0:00:59.9]} 23... Be6
{[%clk 0:02:04.6]} 24. Rf2 {[%clk 0:00:53.5]} 24... Bd5 {[%clk 0:02:01.7]} 25.
Rc1 {[%clk 0:00:46.1]} 25... Rg4 {[%clk 0:01:31.2]} 26. Qe5 {[%clk 0:00:35]}
26... Re8 {[%clk 0:01:31]} 27. Qh5 {[%clk 0:00:31.8]} 27... Rg5 {[%clk
0:01:30.1]} 28. Qe2 {[%clk 0:00:23.7]} 28... Qh3 {[%clk 0:01:18.7]} 29. Qf1
{[%clk 0:00:21.9]} 29... Rh5 {[%clk 0:01:16.1]} 30. Qg1 {[%clk 0:00:16.4]} 30...
Qg3 {[%clk 0:00:50.2]} 31. d3 {[%clk 0:00:09.4]} 31... Rxh2+ {[%clk 0:00:30.9]}
32. Qxh2 {[%clk 0:00:08.9]} 32... Qxf2 {[%clk 0:00:31.8]} 33. e4 {[%clk
0:00:02.2]} 33... Qxd4 {[%clk 0:00:31.2]} 34. exd5 {[%clk 0:00:03]} 34... cxd5
{[%clk 0:00:29.6]} 35. Qxc7 {[%clk 0:00:01.9]} 35... Re5 {[%clk 0:00:26]} 36.
Qc8+ {[%clk 0:00:02]} 36... Kh7 {[%clk 0:00:26.3]} 37. Qh3 {[%clk 0:00:02.1]}
37... g6 {[%clk 0:00:24.9]} 38. g4 {[%clk 0:00:01.2]} 38... Re3 {[%clk
0:00:23.8]} 39. Qf1 {[%clk 0:00:01.9]} 39... Re7 {[%clk 0:00:19.6]} 40. Re1
{[%clk 0:00:01.4]} 40... Rxe1 {[%clk 0:00:18.4]} 41. Qxe1 {[%clk 0:00:02.3]}
41... Qxd3 {[%clk 0:00:18.4]} 42. Qe7 {[%clk 0:00:02.9]} 42... Qe4+ {[%clk
0:00:18.5]} 43. Kh2 {[%clk 0:00:01.8]} 43... Qxe7 {[%clk 0:00:18.4]} 0-1

[Event "Early-Titled-Tuesday-Blitz-May-14-2024"]
[Site "Chess.com"]
[Date "2024.05.14"]
[Round "6"]
[White "rollercoaster29"]
[Black "teresin05"]
[Result "1-0"]
[WhiteElo "2456"]
[BlackElo "2265"]
[TimeControl "180+1"]
[EndTime "9:08:58 PDT"]
[Termination "rollercoaster29 won by checkmate"]

1. d4 {[%clk 0:03:00.9]} 1... d5 {[%clk 0:02:58.9]} 2. Bf4 {[%clk 0:02:59.9]}
2... Nf6 {[%clk 0:02:58.8]} 3. e3 {[%clk 0:02:58.7]} 3... c5 {[%clk 0:02:58.7]}
4. Nf3 {[%clk 0:02:57.8]} 4... Nc6 {[%clk 0:02:57.2]} 5. Nbd2 {[%clk 0:02:57.7]}
5... Bg4 {[%clk 0:02:45.5]} 6. h3 {[%clk 0:02:31.1]} 6... Bxf3 {[%clk
0:02:38.2]} 7. Nxf3 {[%clk 0:02:30.8]} 7... e6 {[%clk 0:02:38.4]} 8. Bb5 {[%clk
0:02:25.9]} 8... Qb6 {[%clk 0:02:36.5]} 9. c4 {[%clk 0:01:44.5]} 9... dxc4
{[%clk 0:02:19.3]} 10. Qa4 {[%clk 0:01:41.3]} 10... Be7 {[%clk 0:02:04.1]} 11.
O-O {[%clk 0:01:29.8]} 11... O-O {[%clk 0:02:02.2]} 12. Bxc6 {[%clk 0:01:25.7]}
12... bxc6 {[%clk 0:01:58.2]} 13. Qxc4 {[%clk 0:01:23.4]} 13... Qxb2 {[%clk
0:01:27.4]} 14. Rab1 {[%clk 0:01:07.3]} 14... Qa3 {[%clk 0:01:26.6]} 15. Rb7
{[%clk 0:00:53.5]} 15... Rfe8 {[%clk 0:01:25.4]} 16. Ne5 {[%clk 0:00:49.5]}
16... Rac8 {[%clk 0:01:19.4]} 17. dxc5 {[%clk 0:00:46.3]} 17... Nd5 {[%clk
0:01:08.1]} 18. Bg3 {[%clk 0:00:28.6]} 18... a5 {[%clk 0:00:29]} 19. Nd3 {[%clk
0:00:24.2]} 19... Nb4 {[%clk 0:00:19.4]} 20. Nxb4 {[%clk 0:00:20.4]} 20... axb4
{[%clk 0:00:19.3]} 21. Rxb4 {[%clk 0:00:16.2]} 21... Qa5 {[%clk 0:00:18.6]} 22.
Bd6 {[%clk 0:00:13.6]} 22... Bf6 {[%clk 0:00:13.5]} 23. Rb7 {[%clk 0:00:12.9]}
23... Ra8 {[%clk 0:00:12.3]} 24. Qe4 {[%clk 0:00:11.1]} 24... Rec8 {[%clk
0:00:07.9]} 25. Rfb1 {[%clk 0:00:08.6]} 25... Qxa2 {[%clk 0:00:07.6]} 26. g4
{[%clk 0:00:07.9]} 26... Qd5 {[%clk 0:00:06.8]} 27. Qxd5 {[%clk 0:00:08.4]}
27... exd5 {[%clk 0:00:07.3]} 28. Kg2 {[%clk 0:00:08.7]} 28... Bd8 {[%clk
0:00:06.2]} 29. Kf3 {[%clk 0:00:08.4]} 29... Ba5 {[%clk 0:00:05.6]} 30. Ra1
{[%clk 0:00:08]} 30... f6 {[%clk 0:00:02.4]} 31. h4 {[%clk 0:00:07.6]} 31... Bc3
{[%clk 0:00:02.2]} 32. Rxa8 {[%clk 0:00:07.3]} 32... Rxa8 {[%clk 0:00:03.1]} 33.
Rc7 {[%clk 0:00:06.9]} 33... Ra6 {[%clk 0:00:03.5]} 34. Rc8+ {[%clk 0:00:06.9]}
34... Kf7 {[%clk 0:00:03.9]} 35. Rf8+ {[%clk 0:00:07.1]} 35... Kg6 {[%clk
0:00:04]} 36. h5+ {[%clk 0:00:06.5]} 36... Kg5 {[%clk 0:00:04.5]} 37. Kg3 {[%clk
0:00:06.6]} 37... Be5+ {[%clk 0:00:03.9]} 38. f4+ {[%clk 0:00:06.2]} 38... Bxf4+
{[%clk 0:00:01.7]} 39. Bxf4# {[%clk 0:00:06.7]} 1-0

[Event "Early-Titled-Tuesday-Blitz-May-14-2024"]
[Site "Chess.com"]
[Date "2024.05.14"]
[Round "6"]
[White "ContrVersia"]
[Black "Vincent_Vega95"]
[Result "0-1"]
[WhiteElo "2893"]
[BlackElo "2770"]
[TimeControl "180+1"]
[EndTime "9:09:01 PDT"]
[Termination "Vincent_Vega95 won by resignation"]

1. Nf3 {[%clk 0:02:55.4]} 1... Nf6 {[%clk 0:03:00.2]} 2. c4 {[%clk 0:02:55.5]}
2... g6 {[%clk 0:03:00.9]} 3. g3 {[%clk 0:02:55.9]} 3... Bg7 {[%clk 0:02:58.2]}
4. Bg2 {[%clk 0:02:56.1]} 4... O-O {[%clk 0:02:59.1]} 5. O-O {[%clk 0:02:56.7]}
5... d6 {[%clk 0:02:59.7]} 6. d4 {[%clk 0:02:56.9]} 6... c6 {[%clk 0:02:58.5]}
7. Nc3 {[%clk 0:02:56.7]} 7... Bf5 {[%clk 0:02:59.2]} 8. Ng5 {[%clk 0:02:57.1]}
8... e5 {[%clk 0:02:55.8]} 9. d5 {[%clk 0:02:52.1]} 9... a5 {[%clk 0:02:52.7]}
10. e4 {[%clk 0:02:50.6]} 10... Bd7 {[%clk 0:02:47.9]} 11. dxc6 {[%clk 0:02:35]}
11... Bxc6 {[%clk 0:02:46.7]} 12. Re1 {[%clk 0:02:35.3]} 12... Na6 {[%clk
0:02:45.3]} 13. Nh3 {[%clk 0:02:23.1]} 13... Nc5 {[%clk 0:02:44.1]} 14. f3
{[%clk 0:02:22.7]} 14... Ne6 {[%clk 0:02:38.2]} 15. Be3 {[%clk 0:02:19.2]} 15...
Nd4 {[%clk 0:02:38.2]} 16. Rc1 {[%clk 0:02:14.6]} 16... a4 {[%clk 0:02:31.3]}
17. Nf2 {[%clk 0:02:10.3]} 17... Qb6 {[%clk 0:02:09.6]} 18. Nd3 {[%clk
0:02:05.5]} 18... Nd7 {[%clk 0:02:02.5]} 19. a3 {[%clk 0:01:34.1]} 19... Nc5
{[%clk 0:01:54.9]} 20. Nb4 {[%clk 0:01:29]} 20... Ncb3 {[%clk 0:01:50]} 21. Ncd5
{[%clk 0:01:29.1]} 21... Qd8 {[%clk 0:01:43.2]} 22. Rc3 {[%clk 0:01:28.4]} 22...
f5 {[%clk 0:01:43.9]} 23. Kh1 {[%clk 0:01:17]} 23... Nc5 {[%clk 0:01:41.2]} 24.
Nc2 {[%clk 0:01:06.4]} 24... Bxd5 {[%clk 0:01:30.3]} 25. cxd5 {[%clk 0:01:01.7]}
25... Ndb3 {[%clk 0:01:30.3]} 26. Nb4 {[%clk 0:00:53.9]} 26... f4 {[%clk
0:01:26.8]} 27. Bf2 {[%clk 0:00:52.1]} 27... Bh6 {[%clk 0:01:27.5]} 28. Bh3
{[%clk 0:00:49.3]} 28... Kh8 {[%clk 0:01:19.2]} 29. Kg2 {[%clk 0:00:47.9]} 29...
Qe7 {[%clk 0:01:16.3]} 30. Nd3 {[%clk 0:00:48.2]} 30... b6 {[%clk 0:01:14.3]}
31. Nb4 {[%clk 0:00:48.4]} 31... Rf7 {[%clk 0:01:13.7]} 32. Nc6 {[%clk
0:00:48.5]} 32... Qc7 {[%clk 0:01:12.2]} 33. Qe2 {[%clk 0:00:42.2]} 33... Raf8
{[%clk 0:01:11.6]} 34. Rf1 {[%clk 0:00:35.6]} 34... fxg3 {[%clk 0:01:08.7]} 35.
hxg3 {[%clk 0:00:35.8]} 35... Nd2 {[%clk 0:01:09.1]} 36. Rh1 {[%clk 0:00:17.6]}
36... Nxf3 {[%clk 0:01:09]} 37. Be6 {[%clk 0:00:17.6]} 37... Nh4+ {[%clk
0:00:33]} 38. Rxh4 {[%clk 0:00:17.5]} 38... Rxf2+ {[%clk 0:00:33.5]} 39. Qxf2
{[%clk 0:00:18.4]} 39... Rxf2+ {[%clk 0:00:33.7]} 40. Kxf2 {[%clk 0:00:19.3]}
40... Kg7 {[%clk 0:00:29.8]} 41. Kf3 {[%clk 0:00:10.8]} 41... Bg5 {[%clk
0:00:30.1]} 42. Rh2 {[%clk 0:00:10.3]} 42... Qb7 {[%clk 0:00:25.4]} 43. Re2
{[%clk 0:00:09.2]} 43... Qa6 {[%clk 0:00:25.6]} 44. Nb4 {[%clk 0:00:08.8]} 44...
Qb5 {[%clk 0:00:25.4]} 45. Bh3 {[%clk 0:00:08.2]} 45... h5 {[%clk 0:00:25.5]}
46. Bf1 {[%clk 0:00:08.3]} 46... Qe8 {[%clk 0:00:25.3]} 47. Kg2 {[%clk
0:00:08.3]} 47... Qd7 {[%clk 0:00:25.7]} 48. Rf3 {[%clk 0:00:08.5]} 48... Qg4
{[%clk 0:00:26.1]} 49. Ref2 {[%clk 0:00:06.3]} 49... Nxe4 {[%clk 0:00:26.3]} 50.
Rc2 {[%clk 0:00:04.8]} 50... h4 {[%clk 0:00:24.3]} 51. Rc4 {[%clk 0:00:03.8]}
51... h3+ {[%clk 0:00:24.6]} 0-1

[Event "Early-Titled-Tuesday-Blitz-May-14-2024"]
[Site "Chess.com"]
[Date "2024.05.14"]
[Round "6"]
[White "Zurability"]
[Black "AryanTari"]
[Result "1-0"]
[WhiteElo "2831"]
[BlackElo "3038"]
[TimeControl "180+1"]
[EndTime "9:09:02 PDT"]
[Termination "Zurability won on time"]

1. e4 {[%clk 0:02:57.2]} 1... e5 {[%clk 0:03:00]} 2. Nf3 {[%clk 0:02:57.6]} 2...
Nc6 {[%clk 0:03:00.6]} 3. Bc4 {[%clk 0:02:58.2]} 3... Nf6 {[%clk 0:03:00.9]} 4.
d3 {[%clk 0:02:58.6]} 4... Bc5 {[%clk 0:03:01.6]} 5. O-O {[%clk 0:02:59]} 5...
d6 {[%clk 0:03:01.7]} 6. c3 {[%clk 0:02:59.6]} 6... a5 {[%clk 0:03:02.3]} 7. Bb3
{[%clk 0:02:59.5]} 7... O-O {[%clk 0:03:01.7]} 8. h3 {[%clk 0:02:59.3]} 8... Be6
{[%clk 0:03:01.7]} 9. Bc2 {[%clk 0:02:59.4]} 9... h6 {[%clk 0:03:01.4]} 10. d4
{[%clk 0:02:58.1]} 10... exd4 {[%clk 0:02:49.5]} 11. cxd4 {[%clk 0:02:57.3]}
11... Bc4 {[%clk 0:02:50.2]} 12. dxc5 {[%clk 0:02:49.1]} 12... Bxf1 {[%clk
0:02:50.9]} 13. Qxf1 {[%clk 0:02:47.4]} 13... dxc5 {[%clk 0:02:51.1]} 14. e5
{[%clk 0:02:43.4]} 14... Nb4 {[%clk 0:02:14.9]} 15. Bf5 {[%clk 0:02:35.9]} 15...
Nfd5 {[%clk 0:02:14]} 16. a3 {[%clk 0:02:24.5]} 16... Nc6 {[%clk 0:02:13.1]} 17.
Nc3 {[%clk 0:02:14.2]} 17... Nxc3 {[%clk 0:02:05.4]} 18. bxc3 {[%clk 0:02:15.1]}
18... Qd5 {[%clk 0:02:05.6]} 19. Bf4 {[%clk 0:02:11.5]} 19... Qb3 {[%clk
0:01:58.2]} 20. Qe1 {[%clk 0:01:52.6]} 20... Ne7 {[%clk 0:01:37.2]} 21. Be4
{[%clk 0:01:41.9]} 21... Rad8 {[%clk 0:01:11.8]} 22. e6 {[%clk 0:01:41]} 22...
Qxe6 {[%clk 0:00:59.4]} 23. Bxb7 {[%clk 0:01:36.9]} 23... Qc4 {[%clk 0:00:50.2]}
24. Bxc7 {[%clk 0:01:11.7]} 24... Rd7 {[%clk 0:00:49.9]} 25. Ne5 {[%clk
0:01:11.1]} 25... Qe6 {[%clk 0:00:36.8]} 26. Nxd7 {[%clk 0:01:06.6]} 26... Qxd7
{[%clk 0:00:37.7]} 27. Qe5 {[%clk 0:01:00.7]} 27... Nf5 {[%clk 0:00:37.9]} 28.
Be4 {[%clk 0:00:56.2]} 28... Nh4 {[%clk 0:00:31.7]} 29. Qg3 {[%clk 0:00:40.4]}
29... Re8 {[%clk 0:00:21]} 30. Bc2 {[%clk 0:00:23.2]} 30... Nf5 {[%clk
0:00:11.3]} 31. Bxf5 {[%clk 0:00:20.7]} 31... Qxf5 {[%clk 0:00:12.2]} 32. Bxa5
{[%clk 0:00:19.4]} 32... c4 {[%clk 0:00:10.6]} 33. Bb4 {[%clk 0:00:18.6]} 33...
Qc2 {[%clk 0:00:09.4]} 34. a4 {[%clk 0:00:18]} 34... Qb2 {[%clk 0:00:10.1]} 35.
Rf1 {[%clk 0:00:17.4]} 35... Qa2 {[%clk 0:00:03.7]} 36. a5 {[%clk 0:00:17.7]}
36... Re6 {[%clk 0:00:04.3]} 37. Qb8+ {[%clk 0:00:15.6]} 37... Kh7 {[%clk
0:00:04.6]} 38. Qb7 {[%clk 0:00:16.1]} 38... Rg6 {[%clk 0:00:03.4]} 39. Qxf7
{[%clk 0:00:15.2]} 39... Qa4 {[%clk 0:00:02.3]} 40. Qf3 {[%clk 0:00:15.2]} 40...
Qb5 {[%clk 0:00:02.5]} 41. Re1 {[%clk 0:00:15.2]} 41... Qg5 {[%clk 0:00:02.6]}
42. Qe4 {[%clk 0:00:15]} 42... Kg8 {[%clk 0:00:02.3]} 43. Re3 {[%clk 0:00:14.2]}
43... Qf6 {[%clk 0:00:02.1]} 44. Rf3 {[%clk 0:00:13.2]} 44... Qg5 {[%clk
0:00:01.8]} 45. Rf8+ {[%clk 0:00:11.9]} 45... Kh7 {[%clk 0:00:02.2]} 46. Re8
{[%clk 0:00:09.2]} 46... h5 {[%clk 0:00:01.8]} 47. Re6 {[%clk 0:00:08.6]} 1-0

[Event "Early-Titled-Tuesday-Blitz-May-14-2024"]
[Site "Chess.com"]
[Date "2024.05.14"]
[Round "6"]
[White "Lovetov"]
[Black "Franmu14"]
[Result "1-0"]
[WhiteElo "2560"]
[BlackElo "2652"]
[TimeControl "180+1"]
[EndTime "9:09:03 PDT"]
[Termination "Lovetov won by resignation"]

1. d4 {[%clk 0:03:00.9]} 1... d5 {[%clk 0:02:59.7]} 2. c4 {[%clk 0:02:58.7]}
2... e6 {[%clk 0:03:00.3]} 3. Nc3 {[%clk 0:02:58.3]} 3... Nf6 {[%clk 0:03:01]}
4. Bg5 {[%clk 0:02:58.6]} 4... Nbd7 {[%clk 0:03:00.5]} 5. cxd5 {[%clk 0:02:58]}
5... exd5 {[%clk 0:03:01.4]} 6. e3 {[%clk 0:02:58.4]} 6... c6 {[%clk 0:03:02]}
7. Bd3 {[%clk 0:02:58.3]} 7... h6 {[%clk 0:03:02.5]} 8. Bh4 {[%clk 0:02:57.7]}
8... Be7 {[%clk 0:03:01.4]} 9. Nge2 {[%clk 0:02:55.6]} 9... Nh5 {[%clk 0:03:01]}
10. Bxe7 {[%clk 0:02:51.8]} 10... Qxe7 {[%clk 0:03:01.9]} 11. Qd2 {[%clk
0:02:49.2]} 11... Nb6 {[%clk 0:03:00.6]} 12. O-O {[%clk 0:02:46.7]} 12... O-O
{[%clk 0:02:59.7]} 13. Rae1 {[%clk 0:02:44.3]} 13... Be6 {[%clk 0:02:57.3]} 14.
f3 {[%clk 0:02:37.3]} 14... c5 {[%clk 0:02:57.1]} 15. dxc5 {[%clk 0:02:34.4]}
15... Qxc5 {[%clk 0:02:58]} 16. Nd4 {[%clk 0:02:34.7]} 16... Rfe8 {[%clk
0:02:54.7]} 17. Rc1 {[%clk 0:02:32.8]} 17... Qe7 {[%clk 0:02:36.2]} 18. Ncb5
{[%clk 0:02:28.6]} 18... Nc4 {[%clk 0:02:33]} 19. Bxc4 {[%clk 0:02:26.7]} 19...
dxc4 {[%clk 0:02:33.9]} 20. Nxe6 {[%clk 0:02:26.3]} 20... fxe6 {[%clk
0:02:34.2]} 21. Rxc4 {[%clk 0:02:23.5]} 21... Red8 {[%clk 0:02:31.6]} 22. Qc3
{[%clk 0:02:21]} 22... Nf6 {[%clk 0:02:30]} 23. e4 {[%clk 0:02:19.7]} 23... Rd7
{[%clk 0:02:28.4]} 24. Rc8+ {[%clk 0:02:11.4]} 24... Rxc8 {[%clk 0:02:26.8]} 25.
Qxc8+ {[%clk 0:02:12.3]} 25... Kh7 {[%clk 0:02:27.1]} 26. Qc4 {[%clk 0:01:59.4]}
26... Rd2 {[%clk 0:02:21.3]} 27. Rf2 {[%clk 0:01:51.8]} 27... Rd1+ {[%clk
0:02:20.2]} 28. Rf1 {[%clk 0:01:52.3]} 28... Rd2 {[%clk 0:02:20.9]} 29. b4
{[%clk 0:01:34.3]} 29... Nh5 {[%clk 0:02:16.4]} 30. Rf2 {[%clk 0:01:28.5]} 30...
Rd1+ {[%clk 0:02:14.5]} 31. Rf1 {[%clk 0:01:29.1]} 31... Rd2 {[%clk 0:02:15.2]}
32. e5 {[%clk 0:01:23.5]} 32... Qg5 {[%clk 0:02:00.4]} 33. Qe4+ {[%clk
0:01:23.4]} 33... g6 {[%clk 0:02:00.6]} 34. f4 {[%clk 0:01:20.8]} 34... Qg4
{[%clk 0:02:00.3]} 35. Qxb7+ {[%clk 0:01:07.8]} 35... Ng7 {[%clk 0:02:00]} 36.
Nd6 {[%clk 0:01:04]} 36... Rd1 {[%clk 0:01:58.8]} 37. Qf3 {[%clk 0:00:40.2]}
37... Qxf3 {[%clk 0:01:58.4]} 38. gxf3 {[%clk 0:00:39.2]} 38... Rd2 {[%clk
0:01:38.2]} 39. Rf2 {[%clk 0:00:38.9]} 39... Rd1+ {[%clk 0:01:38.5]} 40. Kg2
{[%clk 0:00:39.3]} 40... Nh5 {[%clk 0:01:38.1]} 41. Rc2 {[%clk 0:00:36.8]} 41...
Nxf4+ {[%clk 0:01:37]} 42. Kf2 {[%clk 0:00:32]} 42... Rh1 {[%clk 0:01:27.9]} 43.
Rc7+ {[%clk 0:00:31.3]} 43... Kg8 {[%clk 0:01:28.2]} 44. Rxa7 {[%clk 0:00:29.2]}
44... g5 {[%clk 0:01:26.1]} 45. b5 {[%clk 0:00:21.1]} 45... Rxh2+ {[%clk
0:01:26.2]} 46. Ke1 {[%clk 0:00:21.6]} 46... Rb2 {[%clk 0:01:21.7]} 47. a4
{[%clk 0:00:16.5]} 47... h5 {[%clk 0:01:19.4]} 48. Ne4 {[%clk 0:00:16.6]} 48...
Nd3+ {[%clk 0:01:16.8]} 49. Kf1 {[%clk 0:00:13.8]} 49... g4 {[%clk 0:01:00.6]}
50. fxg4 {[%clk 0:00:12.7]} 50... h4 {[%clk 0:01:01.3]} 51. Ng5 {[%clk
0:00:10.9]} 51... Nxe5 {[%clk 0:01:00.9]} 52. Re7 {[%clk 0:00:08.2]} 52... Nxg4
{[%clk 0:00:50.9]} 53. Rxe6 {[%clk 0:00:08.6]} 53... Rb4 {[%clk 0:00:51]} 54. b6
{[%clk 0:00:07.9]} 54... Kg7 {[%clk 0:00:43.7]} 55. a5 {[%clk 0:00:07.8]} 55...
Nh6 {[%clk 0:00:40.2]} 56. a6 {[%clk 0:00:08]} 56... Nf5 {[%clk 0:00:40.3]} 57.
a7 {[%clk 0:00:08]} 57... Rb2 {[%clk 0:00:40.5]} 58. Ne4 {[%clk 0:00:06.8]}
58... Ng3+ {[%clk 0:00:41.4]} 59. Nxg3 {[%clk 0:00:06.3]} 59... hxg3 {[%clk
0:00:42.3]} 60. Re3 {[%clk 0:00:06.7]} 1-0

[Event "Early-Titled-Tuesday-Blitz-May-14-2024"]
[Site "Chess.com"]
[Date "2024.05.14"]
[Round "6"]
[White "Anton_Demchenko"]
[Black "IlanSchnaider"]
[Result "0-1"]
[WhiteElo "2855"]
[BlackElo "2741"]
[TimeControl "180+1"]
[EndTime "9:09:04 PDT"]
[Termination "IlanSchnaider won by checkmate"]

1. e4 {[%clk 0:03:00.9]} 1... c5 {[%clk 0:02:59.8]} 2. Nf3 {[%clk 0:03:01.1]}
2... d6 {[%clk 0:03:00.4]} 3. d4 {[%clk 0:03:01.5]} 3... cxd4 {[%clk 0:03:01.3]}
4. Qxd4 {[%clk 0:03:01.9]} 4... Nc6 {[%clk 0:03:01.2]} 5. Qe3 {[%clk 0:03:02.2]}
5... g6 {[%clk 0:03:01]} 6. h3 {[%clk 0:03:02.5]} 6... Bg7 {[%clk 0:03:01.3]} 7.
Bc4 {[%clk 0:03:02.7]} 7... Nf6 {[%clk 0:03:01.5]} 8. O-O {[%clk 0:03:03.2]}
8... O-O {[%clk 0:03:02]} 9. Rd1 {[%clk 0:03:03.9]} 9... Qc7 {[%clk 0:03:00.8]}
10. Qe2 {[%clk 0:03:03.3]} 10... a6 {[%clk 0:02:54.2]} 11. a4 {[%clk 0:03:03]}
11... b6 {[%clk 0:02:51.9]} 12. Nc3 {[%clk 0:03:02.4]} 12... Nb4 {[%clk
0:02:49.4]} 13. Bb3 {[%clk 0:02:41.8]} 13... Bb7 {[%clk 0:02:48.9]} 14. Bg5
{[%clk 0:02:27.7]} 14... Rac8 {[%clk 0:02:36.4]} 15. Rd4 {[%clk 0:02:13.1]}
15... Nc6 {[%clk 0:02:33.1]} 16. Rd2 {[%clk 0:02:10.2]} 16... Na5 {[%clk
0:02:26.3]} 17. Re1 {[%clk 0:01:58.8]} 17... Nxb3 {[%clk 0:02:15.6]} 18. cxb3
{[%clk 0:01:59.7]} 18... Rfe8 {[%clk 0:02:15.7]} 19. Qe3 {[%clk 0:01:54]} 19...
Nd7 {[%clk 0:02:10.9]} 20. Bh6 {[%clk 0:01:27.3]} 20... Bf6 {[%clk 0:01:31.9]}
21. Nd5 {[%clk 0:01:19.3]} 21... Bxd5 {[%clk 0:01:29.5]} 22. exd5 {[%clk
0:01:20.2]} 22... Qc5 {[%clk 0:01:22.3]} 23. Qf4 {[%clk 0:01:18.6]} 23... Ne5
{[%clk 0:01:15.5]} 24. Nh2 {[%clk 0:00:59.2]} 24... b5 {[%clk 0:00:56]} 25. Qe4
{[%clk 0:00:41.2]} 25... bxa4 {[%clk 0:00:51.7]} 26. Qxa4 {[%clk 0:00:41.3]}
26... Rb8 {[%clk 0:00:33.6]} 27. Ra1 {[%clk 0:00:21.1]} 27... Rec8 {[%clk
0:00:27]} 28. Nf1 {[%clk 0:00:18.7]} 28... Rb6 {[%clk 0:00:20.8]} 29. Be3 {[%clk
0:00:17.3]} 29... Qc7 {[%clk 0:00:12]} 30. Bxb6 {[%clk 0:00:17.9]} 30... Qxb6
{[%clk 0:00:12.9]} 31. Qxa6 {[%clk 0:00:18.3]} 31... Qc5 {[%clk 0:00:12.1]} 32.
Qe2 {[%clk 0:00:18.2]} 32... Rb8 {[%clk 0:00:10.6]} 33. Ne3 {[%clk 0:00:15.8]}
33... Rxb3 {[%clk 0:00:09.6]} 34. Rc2 {[%clk 0:00:16.5]} 34... Qd4 {[%clk
0:00:06]} 35. Ra8+ {[%clk 0:00:15.7]} 35... Kg7 {[%clk 0:00:06.5]} 36. Qd2
{[%clk 0:00:07.1]} 36... Rd3 {[%clk 0:00:05.3]} 37. Qe2 {[%clk 0:00:05.9]} 37...
Bg5 {[%clk 0:00:05.7]} 38. Ng4 {[%clk 0:00:03.3]} 38... Rd1+ {[%clk 0:00:05.6]}
39. Kh2 {[%clk 0:00:03.2]} 39... Bf4+ {[%clk 0:00:05.3]} 40. g3 {[%clk
0:00:03.9]} 40... Qxd5 {[%clk 0:00:06]} 41. f3 {[%clk 0:00:01.3]} 41... Nxf3+
{[%clk 0:00:04.1]} 42. Kg2 {[%clk 0:00:01.7]} 42... Nh4+ {[%clk 0:00:04.1]} 43.
Kf2 {[%clk 0:00:02.1]} 43... Qg2# {[%clk 0:00:04.3]} 0-1